Cogmind - Beta 13 @@@ ROGUE MODE // 2024.05.01 @ 10:45:30 Player: BionicBot Result: Destroyed by H-55 Commando with Gauss Rifle Performance ------------- Evolutions (2) 1000 Regions Visited (5) 1000 Robots Destroyed (129) 645 Value Destroyed (3895) 3895 Prototype IDs (12) 240 Alien Tech Used (0) 0 Bonus (798) 798 TOTAL SCORE: 7578 Bonus ------- High Alert Combat Kills 598 Entered Garrisons 200 Cogmind --------- Core Integrity 0/550 Matter 300/300 Energy 100/100 System Corruption 21% Temperature Cool (9) Movement Core (200) Ox3 Location -8/Garrison Parts ------- > --- POWER (1) -------- (None) > --- PROPULSION (4) --- (None) > --- UTILITY (4) ------ Medium Storage Unit Improved Signal Interpreter Improved Targeting Computer > --- WEAPON (2) ------- (None) > --- INVENTORY (10) --- Cooled Ion Engine Nuclear Core Aluminum Leg Aluminum Leg Medium Storage Unit High-capacity Battery (250) Transport Network Coupler Improved Light Armor Plating Relay Coupler [Grunt] (39) Peak State ------------ > --- POWER ------------ Cooled Ion Engine > --- PROPULSION ------- Aluminum Leg Aluminum Leg Carbon-fiber Leg VSS Leg > --- UTILITY ---------- Medium Storage Unit Experimental Sensor Array Medium Armor Plating Hardened Medium Armor Plating > --- WEAPON ----------- Heavy Particle Gun High-powered Shotgun > --- INVENTORY -------- Cooled Ion Engine Aluminum Leg Medium Storage Unit High-capacity Battery Improved Signal Interpreter Transport Network Coupler Improved Light Armor Plating Improved Assault Rifle High-powered Shotgun Datajack [Rating: 35] Favorites ----------- Power Ion Engine Engine Ion Engine Power Core Nuclear Core Propulsion Aluminum Leg Treads Light Treads Leg Aluminum Leg Utility Medium Storage Unit Device Improved Sensor Array Storage Medium Storage Unit Processor Improved Signal Interpreter Protection Hardened Light Armor Plating Weapon Heavy Assault Rifle Energy Gun Improved EM Shotgun Energy Cannon Improved EM Pulse Cannon Ballistic Gun Heavy Assault Rifle Launcher Grenade Launcher Special Melee Weapon Datajack Build | -11 -10 -10 -9 -8 -8 ------- Run | Yrd Mat Min Mat Mat Gar Slots Evolved 4 | . . . 2 2 . Power . | . . . . . . Propulsion 2 | . . . 2 . . Utility 2 | . . . . 2 . Weapon . | . . . . . . Parts Attached 89 | 6 6 3 33 34 7 Power 7 | 1 . . 3 3 . Engine 6 | 1 . . 3 2 . Core 1 | . . . . 1 . Reactor . | . . . . . . Propulsion 36 | 2 1 2 16 11 4 Treads 2 | . . . . . 2 Leg 34 | 2 1 2 16 11 2 Wheel . | . . . . . . Hover . | . . . . . . Flight . | . . . . . . Utility 23 | 1 3 . 7 12 . Device 4 | . . . . 4 . Storage 3 | 1 1 . 1 . . Processor 4 | . . . . 4 . Hackware . | . . . . . . Protection 12 | . 2 . 6 4 . Artifact . | . . . . . . Weapon 23 | 2 2 1 7 8 3 Energy Gun 6 | . . . 3 2 1 Energy Cannon 1 | . . . . . 1 Ballistic Gun 13 | 2 1 1 4 4 1 Ballistic Cannon . | . . . . . . Launcher 2 | . 1 . . 1 . Special Weapon . | . . . . . . Impact Weapon . | . . . . . . Slashing Weapon . | . . . . . . Piercing Weapon . | . . . . . . Special Melee Weapon 1 | . . . . 1 . Unidentified Prototypes 4 | . . . 2 2 . Corrupted Parts 2 | . . . . . 2 System Corruption 19 | . . . . . 19 Parts Lost 27 | . . 1 2 9 15 Power 2 | . . . . 1 1 Propulsion 12 | . . . 1 3 8 Utility 5 | . . . 1 3 1 Weapon 8 | . . 1 . 2 5 Highest Loss Streak 8 | . . 1 1 7 8 To Critical Strikes . | . . . . . . Average Slot Usage (%) 96 | . 99 99 96 94 90 Engine 10 | . 14 14 11 7 9 Treads 1 | . . . . . 7 Leg 32 | . 28 28 41 33 20 Device 2 | . . . . 7 8 Storage 11 | . 14 14 11 9 9 Processor 4 | . . . . 9 18 Protection 9 | . 13 14 10 8 . Energy Gun 4 | . . . 8 5 5 Ballistic Gun 13 | . 14 25 13 12 3 Launcher 2 | . 14 2 . . 2 Naked Turns . | . . . . . . Heaviest Build 39 | 13 21 21 31 39 30 Greatest Support 47 | 20 20 20 43 47 45 Greatest Overweight (x) 2 | 1 1 1 1 . 2 Average Overweight (x) . | . . 1 . . . Largest Inventory Capacity 10 | 8 8 8 10 10 10 Average Capacity 9 | 7 8 8 9 10 10 Most Carried 10 | . 8 8 10 10 10 Average Carried 8 | . 5 7 8 9 9 Final Capacity 10 | 8 8 8 10 10 10 Final Carried 10 | . 8 8 10 10 9 Class Distribution -------------------- 55% | Scavenger-Mutant 44% | Mutant Dominant Class ---------------- Mutant | -10/Materials Mutant | -10/Mines Scavenger-Mutant | -9/Materials Scavenger-Mutant | -8/Materials Scavenger-Mutant | -8/Garrison Resources | -11 -10 -10 -9 -8 -8 ----------- Run | Yrd Mat Min Mat Mat Gar Matter Collected 2656 | 210 358 177 816 775 320 Remotely . | . . . . . . Salvage Created 4495 | . 478 88 2131 1209 589 Parts 257 | . 26 8 128 64 31 Haulers Intercepted 10 | . 2 . 5 3 . Recyclers Shooed 3 | . . . 1 2 . Parts Field Recycled . | . . . . . . Retrieved Matter . | . . . . . . Parts Self-Destructed . | . . . . . . Prevented . | . . . . . . Kills | -11 -10 -10 -9 -8 -8 ------- Run | Yrd Mat Min Mat Mat Gar Combat Hostiles Destroyed 95 | . 8 5 38 26 18 Guns 72 | . 3 4 35 26 4 Cannons 5 | . . . . . 5 AOE 17 | . 5 1 3 . 8 Classes Destroyed 15 | . 7 1 4 2 1 Worker 2 | . . . 2 . . Builder 4 | . 2 . 2 . . Tunneler 2 | . 1 . 1 . . Hauler 10 | . 2 . 5 3 . Recycler 3 | . 1 . 1 1 . Mechanic 1 | . . . 1 . . Operator 2 | . 1 . 1 . . Watcher 11 | . 3 . 4 4 . Swarmer 17 | . . 3 7 4 3 Grunt 58 | . 8 2 23 17 8 Duelist 1 | . . . 1 . . Sentry 12 | . . . 7 1 4 Specialist 2 | . . . . 2 . Hunter 2 | . . . . 2 . Programmer 3 | . . . . . 3 Best Kill Streak 7 | . 6 3 7 5 5 Combat Bots Only 6 | . 2 3 6 5 5 Max Kills in Single Turn 3 | . 2 1 3 1 1 Gunslinging . | . . . . . . Exploded 2 | . 2 1 2 . 1 Melee . | . . . . . . Uniques/NPCs Destroyed . | . . . . . . Combat | -11 -10 -10 -9 -8 -8 -------- Run | Yrd Mat Min Mat Mat Gar Hostile Shots Fired 498 | . 23 27 154 167 127 Missed 144 | . 7 4 53 45 35 Damage Taken 5527 | . 228 316 1611 1942 1430 Core 793 | . 23 48 157 175 390 Absorbed by Shields . | . . . . . . Regen/Repaired (Parts) 121 | . . . 121 . . Core Remaining (%) 77 | 100 . 71 60 . . Volleys Fired 353 | . 31 11 132 125 54 Largest 2 | . 2 2 2 2 2 Hottest 138 | . 53 53 78 81 138 Shots Fired 631 | . 53 22 248 224 84 Gun 569 | . 31 19 248 224 47 Cannon 21 | . . . . . 21 Launcher 41 | . 22 3 . . 16 Special . | . . . . . . Kinetic 366 | . 31 19 154 156 6 Thermal 118 | . . . 9 68 41 Explosive 41 | . 22 3 . . 16 Electromagnetic 106 | . . . 85 . 21 Robot Hit Streak 15 | . 5 4 15 11 14 Robot Miss Streak 5 | . 5 3 5 5 4 Penetration Max . | . . . . . . Secondary Targets 7 | . . 1 4 2 . Max Gunslinging Chain 1 | . . 1 1 1 . Shots Hit Robots 420 | . 29 11 174 148 58 Core Hits 237 | . 23 7 92 73 42 Critical Kills 2 | . . . . 2 . Critical Parts Destroyed 1 | . . . 1 . . Critical Strikes 9 | . . . 1 5 3 Burn 6 | . . . . 3 3 Destroy 3 | . . . 1 2 . Melee Attacks . | . . . . . . Impact . | . . . . . . Slashing . | . . . . . . Piercing . | . . . . . . Sneak Attacks . | . . . . . . Combat Hostiles . | . . . . . . Follow-up Attacks . | . . . . . . Damage Inflicted 9258 | . 1158 381 3114 2771 1834 Guns 6438 | . 232 160 2792 2742 512 Cannons 486 | . . . . . 486 Explosions 2248 | . 913 207 309 . 819 Melee . | . . . . . . Ramming 86 | . 13 14 13 29 17 Kinetic 3807 | . 232 160 1367 2001 47 Thermal 1669 | . . . 463 741 465 Explosive 1939 | . 913 207 . . 819 Electromagnetic 1757 | . . . 1271 . 486 Impact . | . . . . . . Slashing . | . . . . . . Piercing . | . . . . . . Highest Corruption 21 | . 1 1 1 . 21 Average Corruption 3 | . 1 1 1 . 9 Corruption Purged . | . . . . . . Corruption Blocked . | . . . . . . Effects 30 | . . 6 8 . 16 Message Errors 7 | . . 2 3 . 2 Matter Fused 6 | . . 1 1 . 4 Heat Flow Errors 5 | . . 2 2 . 1 Energy Discharges 5 | . . . 1 . 4 Data Loss (minor) 5 | . . 1 1 . 3 Data Loss (major) 2 | . . . . . 2 Overload Shots . | . . . . . . Overflow Damage 121 | . 66 7 . . 48 Projectiles . | . . . . . . Explosions 121 | . 66 7 . . 48 Melee . | . . . . . . Knockbacks . | . . . . . . Impact . | . . . . . . Kinetic . | . . . . . . Secondary . | . . . . . . Self-Inflicted Damage 271 | . 34 94 119 . 24 Shots 10 | . 2 3 4 . 1 Rammed . | . . . . . . Targets Rammed 26 | . 2 3 3 8 10 Kicked 26 | . 2 3 3 8 10 Crushed . | . . . . . . Highest Temperature 535 | . 43 260 302 535 420 Average Temperature 92 | . 17 100 61 133 105 Received Heat Transfer 1857 | . 108 48 486 927 288 Effects 16 | . . . 1 12 3 Shutdowns 3 | . . . . 2 1 Energy Bleed 7 | . . . 1 6 . Interference 2 | . . . . 1 1 Matter Decay 1 | . . . . 1 . Short Circuit 2 | . . . . 2 . Damage (minor) 1 | . . . . . 1 Siege Activations . | . . . . . . Robots Corrupted 2 | . . . 1 . 1 Combat Hostiles 1 | . . . . . 1 Parts Fried 6 | . . . 5 . 1 Impact Corruptions . | . . . . . . Robots Melted . | . . . . . . Combat Hostiles . | . . . . . . Parts Melted 4 | . . . . 2 2 Heat Transferred 3597 | . . . 846 1604 1147 Parts Sabotaged . | . . . . . . Parts Stolen . | . . . . . . Parts Stripped . | . . . . . . Power Chain Reactions 5 | . . . 5 . . Alert | -11 -10 -10 -9 -8 -8 ------- Run | Yrd Mat Min Mat Mat Gar Peak Influence 802 | . 285 112 790 686 802 Initial 367 | . . 52 . 325 367 Average 345 | . 142 79 314 545 636 Maximum Alert Level 3 | . 1 . 3 2 3 Low Security (%) 36 | 100 61 100 33 . . Level 1 22 | . 38 . 39 14 4 Level 2 32 | . . . 18 85 59 Level 3 7 | . . . 7 . 36 Level 4 . | . . . . . . Level 5 . | . . . . . . High Security . | . . . . . . Max Security . | . . . . . . Squads Dispatched 12 | . 1 . 7 4 . Investigation 3 | . . . 3 . . Extermination . | . . . . . . Reinforcement 7 | . 1 . 3 3 . Assault 2 | . . . 1 1 . Garrison . | . . . . . . Intercept . | . . . . . . Searches Triggered . | . . . . . . Construction Impeded 2 | . . . 1 1 . Haulers Reinforced . | . . . . . . Active Scanning Responses . | . . . . . . Cargo Convoy Interrupts . | . . . . . . Stealth | -11 -10 -10 -9 -8 -8 --------- Run | Yrd Mat Min Mat Mat Gar Distress Signals 6 | . 1 . 1 4 . Communications Jammed . | . . . . . . Distress Signals . | . . . . . . Times Spotted 137 | . 13 5 51 45 23 Peak Tracking Total 5 | . 4 3 5 5 5 Tactical Retreats 6 | . . . 2 3 1 Traps | -11 -10 -10 -9 -8 -8 ------- Run | Yrd Mat Min Mat Mat Gar Traps Triggered 5 | . 1 . 3 . 1 Indirectly . | . . . . . . Trap Hack Attempts . | . . . . . . Triggered . | . . . . . . Disarmed . | . . . . . . Reprogrammed . | . . . . . . Reused . | . . . . . . Traps Extracted . | . . . . . . Installed . | . . . . . . Triggered . | . . . . . . Machines | -11 -10 -10 -9 -8 -8 ---------- Run | Yrd Mat Min Mat Mat Gar Machines Disabled 5 | . 2 2 1 . . Max in Single Turn 1 | . 1 1 1 . . Garrison Relay 1 | . . . . . 1 Machines Repaired . | . . . . . . Machines Dismantled . | . . . . . . Machines Sabotaged . | . . . . . . Overloaded Fab Kills . | . . . . . . Hacking | -11 -10 -10 -9 -8 -8 --------- Run | Yrd Mat Min Mat Mat Gar Machines Accessed 15 | . 2 . 9 2 2 Terminals 9 | . 2 . 4 1 2 Fabricators . | . . . . . . Repair Stations 2 | . . . 2 . . Recycling Units 1 | . . . 1 . . Scanalyzers 2 | . . . 2 . . Garrison Access 1 | . . . . 1 . Total Hacks 37 | . 5 . 26 2 4 Successful 19 | . 2 . 15 2 . Failed 18 | . 3 . 11 . 4 Catastrophic 1 | . . . . . 1 Database Lockouts . | . . . . . . Manual . | . . . . . . Terminals 21 | . 5 . 11 1 4 Fabricators . | . . . . . . Repair Stations 8 | . . . 8 . . Recycling Units 2 | . . . 2 . . Scanalyzers 5 | . . . 5 . . Garrison Access 1 | . . . . 1 . Terminal Hacks 8 | . 2 . 5 1 . Prototype ID Bank 4 | . 1 . 3 . . Locate Traps 1 | . 1 . . . . Transport Status 1 | . . . . 1 . Zone Layout 2 | . . . 2 . . Fabricator Hacks . | . . . . . . Repair Station Hacks 5 | . . . 5 . . Scan Component 3 | . . . 3 . . Repair 2 | . . . 2 . . Recycling Unit Hacks 1 | . . . 1 . . Retrieve Components 1 | . . . 1 . . Scanalyzer 4 | . . . 4 . . Insert Component 3 | . . . 3 . . Analyze 1 | . . . 1 . . Garrison Access Hacks 1 | . . . . 1 . Unlock Access 1 | . . . . 1 . Unauthorized Hacks . | . . . . . . Terminals . | . . . . . . Fabricators . | . . . . . . Repair Stations . | . . . . . . Recycling Units . | . . . . . . Scanalyzers . | . . . . . . Garrison Access . | . . . . . . Data Cores Recovered 1 | . 1 . . . . Used . | . . . . . . Hacking Detections 10 | . 1 . 7 . 2 Full Trace Events 3 | . . . 3 . . Feedback Events . | . . . . . . Feedback Blocked . | . . . . . . Robot Schematics Acquired . | . . . . . . Robots Built . | . . . . . . Authchips . | . . . . . . Time . | . . . . . . Total Robot Build Rating . | . . . . . . Part Schematics Acquired 1 | . . . 1 . . Parts Built . | . . . . . . Authchips . | . . . . . . Time . | . . . . . . Total Part Build Rating . | . . . . . . Parts Repaired 2 | . . . 2 . . Time 168 | . . . 168 . . Parts Recycled . | . . . . . . Recycled Matter . | . . . . . . Retrieved Matter . | . . . . . . Retrieved Components 10 | . . . 10 . . Parts Scanalyzed 2 | . . . 2 . . Part Schematics Acquired 1 | . . . 1 . . Parts Damaged 1 | . . . 1 . . Bothacking | -11 -10 -10 -9 -8 -8 ------------ Run | Yrd Mat Min Mat Mat Gar Used RIF Installer . | . . . . . . Robots Hacked . | . . . . . . Non-combat . | . . . . . . Combat . | . . . . . . Robot Hacks Applied . | . . . . . . Relay Couplers Released 5 | . . . . . 5 Machine Destruction 5 | . . . . . 5 Fabnet Peak Effective % . | . . . . . . Robots Rewired . | . . . . . . Allies Hacked . | . . . . . . Hacks Repelled . | . . . . . . Allies | -11 -10 -10 -9 -8 -8 -------- Run | Yrd Mat Min Mat Mat Gar Total Allies . | . . . . . . Largest Group . | . . . . . . Highest-Rated Group . | . . . . . . Highest-Rated Ally . | . . . . . . Total Orders . | . . . . . . Ally Attacks . | . . . . . . Total Damage . | . . . . . . Kills . | . . . . . . Allies Corrupted . | . . . . . . Allies Melted . | . . . . . . Intel | -11 -10 -10 -9 -8 -8 ------- Run | Yrd Mat Min Mat Mat Gar Robot Analysis Total . | . . . . . . Derelict Logs Recovered 1 | . . 1 . . . Drone Launches . | . . . . . . Drone Recoveries . | . . . . . . Exploration | -11 -10 -10 -9 -8 -8 ------------- Run | Yrd Mat Min Mat Mat Gar Turns Passed 6026 | 59 870 915 2057 1252 873 Spaces Moved 3133 | 40 502 458 1065 630 438 Core 5 | 5 . . . . . Treads 135 | . . . . . 135 Legs 2993 | 35 502 458 1065 630 303 Wheels . | . . . . . . Hover . | . . . . . . Flight . | . . . . . . Fastest Speed 50 | 50 120 190 120 105 120 Average Speed 142 | 116 151 190 129 119 152 Slowest Speed 260 | 120 190 190 190 120 260 Overloaded Moves . | . . . . . . Propulsion Burnouts . | . . . . . . Robots Hopped . | . . . . . . Cave-ins Triggered . | . . . . . . Exploration Rate (%) 57 | 4 76 94 79 45 46 Regions Visited 5 Branch Regions 1 Pre-discovered Areas 1 | . . 1 . . . Known Exits Taken 1 | . . . . 1 . Unknown Exits Taken 4 | 1 1 1 1 . . Scrap Searched 3 | . . 3 . . . Spaces Dug . | . . . . . . Terrain Destroyed 228 | . 128 26 17 . 57 Melee . | . . . . . . Projectile . | . . . . . . AOE 228 | . 128 26 17 . 57 Terrain Rammed . | . . . . . . Walls Destroyed . | . . . . . . Machines Disabled . | . . . . . . Actions | -11 -10 -10 -9 -8 -8 --------- Run | Yrd Mat Min Mat Mat Gar Total 4051 | 49 558 480 1509 906 549 Wait 383 | 4 4 1 249 86 39 Move 3128 | 39 501 457 1064 629 438 Hop . | . . . . . . Pick Up 18 | . 8 2 4 3 1 Fast Attach 34 | 6 3 . 6 14 5 Attach 13 | . . 1 5 5 2 Detach 7 | . 2 . 1 4 . Swap 42 | . 3 2 22 15 . Drop 47 | . 4 3 23 17 . Fire 353 | . 31 11 132 125 54 Melee . | . . . . . . Ram . | . . . . . . Kick 26 | . 2 3 3 8 10 Crush . | . . . . . . Escape Stasis . | . . . . . . Rewire . | . . . . . . Trap . | . . . . . . Miscellaneous . | . . . . . . Route ------- -11/Scrapyard -10/Materials (discovered 3 exits: *Mat x2 / [*Min]) -10/Mines (discovered 2 exits: *Mat x2) -9/Materials (discovered 4 exits: *Mat x3 / [*Min]) -8/Materials -8/Garrison (discovered 1 exit: [*Fac]) History --------- Turn | Location | Event 18 | -11/Scrapyard | Discovered new exit (range 15) 60 | -11/Scrapyard | Entered Materials 223 | -10/Materials | Discovered new exit (range 15) 315 | -10/Materials | Build established: Mutant 499 | -10/Materials | Discovered new exit (range 8) 888 | -10/Materials | Discovered new exit (range 7) 930 | -10/Materials | Entered Mines 938 | -10/Mines | Discovered new exit (range 8) 993 | -10/Mines | Met a Derelict bent on vengeance 1005 | -10/Mines | Found a damaged Exp. Sensor Array with a note attached 1009 | -10/Mines | Found Prototype Device 1299 | -10/Mines | Discovered new exit (range 7) 1845 | -10/Mines | Entered Materials 1845 | -9/Materials | Evolved 2 slots: Propulsion x2 1990 | -9/Materials | Identified Exp. Sensor Array 2164 | -9/Materials | Repaired Broken Exp. Sensor Array 2471 | -9/Materials | Build established: Scavenger-Mutant 2708 | -9/Materials | Discovered new exit (range 13) 3122 | -9/Materials | Discovered new exit (range 10) 3217 | -9/Materials | Build established: Mutant 3521 | -9/Materials | Build established: Scavenger-Mutant 3534 | -9/Materials | Discovered new exit (range 3) 3623 | -9/Materials | Repaired Med. Armor Plating 3845 | -9/Materials | First assault squad dispatched 3887 | -9/Materials | Discovered new exit (range 5) 3902 | -9/Materials | Entered another Materials area 3902 | -8/Materials | Evolved 2 slots: Utility x2 4302 | -8/Materials | First assault squad dispatched 4428 | -8/Materials | Lost 7 parts (1p2n2u2w) 5152 | -8/Materials | Identified exit to Garrison 5154 | -8/Materials | Entered Garrison 5180 | -8/Garrison | Triggered checkpoint 5283 | -8/Garrison | Triggered checkpoint 5308 | -8/Garrison | Triggered checkpoint 5418 | -8/Garrison | Lost 5 parts (3n2w) 5707 | -8/Garrison | System corruption reached 10% 5776 | -8/Garrison | Triggered checkpoint 5846 | -8/Garrison | Triggered checkpoint 5912 | -8/Garrison | Discovered new exit (range 13) 5972 | -8/Garrison | Triggered checkpoint 5990 | -8/Garrison | Core integrity fell below 50% 6012 | -8/Garrison | Garrison Relay disabled 6021 | -8/Garrison | Core integrity fell below 20% 6027 | -8/Garrison | Destroyed by H-55 Commando with Gauss Rifle Last Messages --------------- 06012_ Relay Coupler [Sentry] tumbles out of relay unit. 06013_ System corrupted: Matter fused (-10). 06013_ Kicked H-55 Commando. 06014_ Penetrated by Slug. 06015_ Kicked H-55 Commando. 06015_ Penetrated by Slug. 06015_ Lgt. Treads destroyed. 06017_ Kicked H-55 Commando. 06017_ Slug penetrates Wall. 06018_ Slug penetrates Garrison Relay. 06018_ Kicked H-55 Commando. 06020_ Penetrated by Slug. 06020_ Kicked H-55 Commando out of the way. 06024_ H-55 Commando suffers critical hit (Burn). 06024_ Slug penetrates Reinforced Barrier. 06024_ Hvy. Ion Engine destroyed. 06024_ Kicked H-55 Commando. 06026_ Penetrated by Slug. 06027_ Kicked H-55 Commando. 06027_ Aluminum Leg destroyed. Map ----- +----------------------------------------------------+ | ???????????????????????# #??????## ## ## ##? | | ???????????????????????# #???????# ## #? #?? | | ???????????????????????# #???????# #######?? #?? | | ???????????????????????# #???????# #???????? #?? | | ???????????????????????# #???????# #?????????#?? | | ???????????????????????# #???????# #???????????? | | ??????????????########## ######### #???????????? | | ??????????????# #???????????? | | ??????????????# #???????????? | | ??????????????# ### ### #############???????????? | | ??????????????# ## ## #???????????????????????? | | ??????????????# ##" "## #???????????????????????? | | ??????????????# ##" "## #???????????????????????? | | ??????????????# ##" "## #####???????????????????? | | ??????????????# ##"""## #???????????????????? | | ??????????????# ########### #???????????????????? | | ??????????????# #?????????# #???????????????????? | | ??????????????# #?????????# #???????????????????? | | ????????????### #?????????# #???????????????????? | | ????????????# #?????????# "???????????????????? | | ????????????# < #?????????# "???????????????????? | | ????????????# #?????????# "???????????????????? | | ????????????######?????????# #???????????????????? | | ????????????????############=#???????????????????? | | ????????????????# !!!Yh%[#???????????????????? | | ????????????????#"T"###!h@##+#???????????????????? | | ????????????????######%%""%#?????????????????????? | | ?????????????????????#######?????????????????????? | | ?????????????????????????????????????????????????? | | ?????????????????????????????????????????????????? | | ?????????????????????????????????????????????????? | | ?????????????????????????????????????????????????? | | ?????????????????????????????????????????????????? | | ?????????????????????????????????????????????????? | | ?????????????????????????????????????????????????? | | ?????????????????????????????????????????????????? | | ?????????????????????????????????????????????????? | | ?????????????????????????????????????????????????? | | ?????????????????????????????????????????????????? | | ?????????????????????????????????????????????????? | | ?????????????????????????????????????????????????? | | ?????????????????????????????????????????????????? | | ?????????????????????????????????????????????????? | | | | | | | | | | | | | | | +----------------------------------------------------+ Best States ------------- Heat Dissipation 31 Energy Generation 14 Energy Capacity 500 Matter Stores 300 Matter Capacity 300 Sight Range 16 Robot Scan Range 20 Terrain Scan Density 10 Armor Coverage 450 Evasion (%) 55 Targeting Accuracy 6 Recoil Reduction 2 Item Schematics ----------------- Aluminum Leg | -9/Materials | Scanalyzed Robot Schematics ------------------ None Fabricated ------------ Nothing Alien Tech Used ----------------- None Achievements -------------- None Challenges ------------ None Game ------ Seed MicrowarpThunderImmobilizer Manual? 0 Play Time 00:54:01 Cumulative 21.4 hours Start 2024.05.01 @ 09:34:45 End 2024.05.01 @ 10:45:30 Sessions 1 Manual Loads 0 Difficulty Rogue Special Mode None Game No. 18 Rogue 18 Adventurer 0 Explorer 0 Win Type - Total 0 Types 0/0/0/0/0/0/0/0/0 Lore% 4 Gallery% 21 Achievement% 17 Wizard Run 0 Options --------- Layout 0 ASCII 0 Keyboard 1 Movement Numpad Keybinds 0 Fullscreen 2 Font 18/SmallcapsGlow Map View 76x50 Zoom Use 0% Tactical HUD 1 Map Filters NONE Filters NONE Steam 1 RUN: 5b96e5cf-6969-44b5-baeb-3f540ee9692c